{"text_format":"3","workbook":"xlsx","n_sheets":4,"sheets":["Plant Inventory","Seed Starting Log","Task List","Garden Planning Grid"],"not_rendered":{"defined_names":5},"read":"whole","date_system":"1900"}

{"sheet":"Plant Inventory","index":0,"n_rows":16,"n_cols":14,"rows_kept":16}
[]
[null,null,"Plant Inventory"]
{"$rows_empty":7}
[null,null,"PLANT DATA",{"$nulls":5},"PLANTING DATA",null,null,"FEEDING/FERTILIZATION & NOTES"]
[]
[null,"id","name","type","source","color","size","cost","date planted","location","soil","fertilizer","schedule","notes"]
[null,"P1","Azalea ","Perennial","Local greenhouse","Pink","4 - 6 feet",{"v":10,"d":"$10.00"},"2011-04-03","West bed","4.5 - 6.0 pH","8-8-8","late winter or early spring","Doesn't like wet feet"]
[null,"P2","Hosta","Perennial","Division","Green","2 - 4 feet",0,"2011-04-04","East bed","6.5 - 7.5 pH","10-10-10","early spring, six weeks after, then mid-summer"]
[null,"B1","Sweet William Dwarf ","Biannual","Mail order","Pink","6 - 8 inches",{"v":2.25,"d":"$2.25"},"2011-04-05","South bed","5.8 - 7.2 pH","5-5-5","spring & summer","Start indoors 6-8 weeks before spring"]
[null,"totals",{"$f":"\"total plants: \"&SUBTOTAL(103,PlantJournal[name])","v":"total plants: 3"},{"$nulls":4},{"$f":"SUBTOTAL(109,PlantJournal[cost])","v":{"v":12.25,"d":"$12.25"}}]

{"sheet":"Seed Starting Log","index":1,"n_rows":16,"n_cols":11,"rows_kept":16}
[]
[{"$nulls":3},"Seed Starting Log"]
[{"$nulls":3},"Transplant date (date of last frost + any additional days):",null,null,"2012-05-30"]
[]
[]
[]
[]
[]
[]
[null,null,"SEED DATA",null,null,"AVERAGES",null,"PLANTING DATA",null,"FEEDING & NOTES"]
[]
[null,"id","tray no.","type","source","germination","growth","total seeds","sow date","feeding","notes"]
[null,"S1",1,"Tomato","Catalog",8,{"$f":"7*7","v":49},10,{"$f":"IFERROR(IF(TransplantDate<>\"\",TransplantDate-(SeedStartingLog[[#This Row],[germination]]+SeedStartingLog[[#This Row],[growth]])),\"\")","v":"2012-04-03"},"Allow soil to dry slightly between watering"]
[null,"S2",1,"Bell Pepper","Catalog",17,{"$f":"7*10","v":70},10,{"$f":"IFERROR(IF(TransplantDate<>\"\",TransplantDate-(SeedStartingLog[[#This Row],[germination]]+SeedStartingLog[[#This Row],[growth]])),\"\")","v":"2012-03-04"},"Keep soil moist","Start in 3\" pots"]
[null,"S3",2,"Sunflower","Garden Supply",12,{"$f":"7*4","v":28},15,{"$f":"IFERROR(IF(TransplantDate<>\"\",TransplantDate-(SeedStartingLog[[#This Row],[germination]]+SeedStartingLog[[#This Row],[growth]])),\"\")","v":"2012-04-20"},"Keep soil moist","Nicked seed, soaked for 24 hours"]
[null,"totals",null,{"$f":"\"total seed types: \"&SUBTOTAL(103,SeedStartingLog[type])","v":"total seed types: 3"},{"$nulls":3},{"$f":"SUBTOTAL(109,SeedStartingLog[total seeds])","v":35}]

{"sheet":"Task List","index":2,"n_rows":22,"n_cols":15,"rows_kept":22,"merged":[[7,8,8,12],[7,13,8,14],[10,5,10,6],[10,8,11,8],[10,9,11,9],[10,10,11,10],[10,11,11,11],[10,12,11,12],[10,13,11,13],[10,14,11,14],[11,5,11,6],[12,5,12,6],[12,8,13,8],[12,9,13,9],[12,10,13,10],[12,11,13,11],[12,12,13,12],[12,13,13,13],[12,14,13,14],[13,5,13,6],[14,5,14,6],[14,8,15,8],[14,9,15,9],[14,10,15,10],[14,11,15,11],[14,12,15,12],[14,13,15,13],[14,14,15,14],[15,5,15,6],[16,5,16,6],[16,8,17,8],[16,9,17,9],[16,10,17,10],[16,11,17,11],[16,12,17,12],[16,13,17,13],[16,14,17,14],[17,5,17,6],[18,5,18,6],[18,8,19,8],[18,9,19,9],[18,10,19,10],[18,11,19,11],[18,12,19,12],[18,13,19,13],[18,14,19,14],[19,5,19,6],[20,5,20,6],[20,8,21,8],[20,9,21,9],[20,10,21,10],[20,11,21,11],[20,12,21,12],[20,13,21,13],[20,14,21,14],[21,5,21,6],[23,5,23,14],[24,5,24,14],[25,5,25,14],[26,5,26,14],[27,5,27,14],[28,5,28,14],[29,5,29,14],[30,5,30,14],[31,5,31,14],[32,5,32,14],[33,5,33,14],[34,5,34,14],[35,5,35,14],[36,5,36,14]]}
[]
[null,null,"Task List"]
[]
[]
[]
[]
[]
[null,"TASK LIST",{"$nulls":3},"NOTES",null,null,"May",{"$nulls":4},2013]
[]
[null,"task","due date","% complete","done?",{"$nulls":3},"S","M","T","W","T","F","S"]
[null,"Plant bell peppers","2013-03-04",{"v":1,"d":"100%"},{"$f":"IF(TaskList[[#This Row],[% complete]]=1,1,IF(ISBLANK(TaskList[[#This Row],[due date]]),2,IF(TODAY()>TaskList[[#This Row],[due date]],3,2)))","v":{"v":1,"d":"100%"}},{"$nulls":3},{"$f":"IF(DAY(DATE(CalendarYear,CalendarMonth,1)-WEEKDAY(DATE(CalendarYear,CalendarMonth,1)))=1,DATE(CalendarYear,CalendarMonth,1)-WEEKDAY(DATE(CalendarYear,CalendarMonth,1))-6,DATE(CalendarYear,CalendarMonth,1)-WEEKDAY(DATE(CalendarYear,CalendarMonth,1))+1)","v":"2013-04-28"},{"$f":"IF(DAY(DATE(CalendarYear,CalendarMonth,1)-WEEKDAY(DATE(CalendarYear,CalendarMonth,1)))=1,DATE(CalendarYear,CalendarMonth,1)-WEEKDAY(DATE(CalendarYear,CalendarMonth,1))-5,DATE(CalendarYear,CalendarMonth,1)-WEEKDAY(DATE(CalendarYear,CalendarMonth,1))+2)","v":"2013-04-29"},{"$f":"IF(DAY(DATE(CalendarYear,CalendarMonth,1)-WEEKDAY(DATE(CalendarYear,CalendarMonth,1)))=1,DATE(CalendarYear,CalendarMonth,1)-WEEKDAY(DATE(CalendarYear,CalendarMonth,1))-4,DATE(CalendarYear,CalendarMonth,1)-WEEKDAY(DATE(CalendarYear,CalendarMonth,1))+3)","v":"2013-04-30"},{"$f":"IF(DAY(DATE(CalendarYear,CalendarMonth,1)-WEEKDAY(DATE(CalendarYear,CalendarMonth,1)))=1,DATE(CalendarYear,CalendarMonth,1)-WEEKDAY(DATE(CalendarYear,CalendarMonth,1))-3,DATE(CalendarYear,CalendarMonth,1)-WEEKDAY(DATE(CalendarYear,CalendarMonth,1))+4)","v":"2013-05-01"},{"$f":"IF(DAY(DATE(CalendarYear,CalendarMonth,1)-WEEKDAY(DATE(CalendarYear,CalendarMonth,1)))=1,DATE(CalendarYear,CalendarMonth,1)-WEEKDAY(DATE(CalendarYear,CalendarMonth,1))-2,DATE(CalendarYear,CalendarMonth,1)-WEEKDAY(DATE(CalendarYear,CalendarMonth,1))+5)","v":"2013-05-02"},{"$f":"IF(DAY(DATE(CalendarYear,CalendarMonth,1)-WEEKDAY(DATE(CalendarYear,CalendarMonth,1)))=1,DATE(CalendarYear,CalendarMonth,1)-WEEKDAY(DATE(CalendarYear,CalendarMonth,1))-1,DATE(CalendarYear,CalendarMonth,1)-WEEKDAY(DATE(CalendarYear,CalendarMonth,1))+6)","v":"2013-05-03"},{"$f":"IF(DAY(DATE(CalendarYear,CalendarMonth,1)-WEEKDAY(DATE(CalendarYear,CalendarMonth,1)))=1,DATE(CalendarYear,CalendarMonth,1)-WEEKDAY(DATE(CalendarYear,CalendarMonth,1)),DATE(CalendarYear,CalendarMonth,1)-WEEKDAY(DATE(CalendarYear,CalendarMonth,1))+7)","v":"2013-05-04"}]
[null,"Plant tomato seeds","2013-04-03",{"v":1,"d":"100%"},{"$f":"IF(TaskList[[#This Row],[% complete]]=1,1,IF(ISBLANK(TaskList[[#This Row],[due date]]),2,IF(TODAY()>TaskList[[#This Row],[due date]],3,2)))","v":1},{"$nulls":3},{"$f":"IF(DAY(JanSun1)=1,JanSun1-6,JanSun1+1)","v":{"$error":"#NAME?"}},{"$f":"IF(DAY(JanSun1)=1,JanSun1-5,JanSun1+2)","v":{"$error":"#NAME?"}},{"$f":"IF(DAY(JanSun1)=1,JanSun1-4,JanSun1+3)","v":{"$error":"#NAME?"}},{"$f":"IF(DAY(JanSun1)=1,JanSun1-3,JanSun1+4)","v":{"$error":"#NAME?"}},{"$f":"IF(DAY(JanSun1)=1,JanSun1-2,JanSun1+5)","v":{"$error":"#NAME?"}},{"$f":"IF(DAY(JanSun1)=1,JanSun1-1,JanSun1+6)","v":{"$error":"#NAME?"}},{"$f":"IF(DAY(JanSun1)=1,JanSun1,JanSun1+7)","v":{"$error":"#NAME?"}}]
[null,"Plant sunflowers","2013-05-01",{"v":1,"d":"100%"},{"$f":"IF(TaskList[[#This Row],[% complete]]=1,1,IF(ISBLANK(TaskList[[#This Row],[due date]]),2,IF(TODAY()>TaskList[[#This Row],[due date]],3,2)))","v":{"v":1,"d":"100%"}},{"$nulls":3},{"$f":"IF(DAY(DATE(CalendarYear,CalendarMonth,1)-WEEKDAY(DATE(CalendarYear,CalendarMonth,1)))=1,DATE(CalendarYear,CalendarMonth,1)-WEEKDAY(DATE(CalendarYear,CalendarMonth,1))+1,DATE(CalendarYear,CalendarMonth,1)-WEEKDAY(DATE(CalendarYear,CalendarMonth,1))+8)","v":"2013-05-05"},{"$f":"IF(DAY(DATE(CalendarYear,CalendarMonth,1)-WEEKDAY(DATE(CalendarYear,CalendarMonth,1)))=1,DATE(CalendarYear,CalendarMonth,1)-WEEKDAY(DATE(CalendarYear,CalendarMonth,1))+2,DATE(CalendarYear,CalendarMonth,1)-WEEKDAY(DATE(CalendarYear,CalendarMonth,1))+9)","v":"2013-05-06"},{"$f":"IF(DAY(DATE(CalendarYear,CalendarMonth,1)-WEEKDAY(DATE(CalendarYear,CalendarMonth,1)))=1,DATE(CalendarYear,CalendarMonth,1)-WEEKDAY(DATE(CalendarYear,CalendarMonth,1))+3,DATE(CalendarYear,CalendarMonth,1)-WEEKDAY(DATE(CalendarYear,CalendarMonth,1))+10)","v":"2013-05-07"},{"$f":"IF(DAY(DATE(CalendarYear,CalendarMonth,1)-WEEKDAY(DATE(CalendarYear,CalendarMonth,1)))=1,DATE(CalendarYear,CalendarMonth,1)-WEEKDAY(DATE(CalendarYear,CalendarMonth,1))+4,DATE(CalendarYear,CalendarMonth,1)-WEEKDAY(DATE(CalendarYear,CalendarMonth,1))+11)","v":"2013-05-08"},{"$f":"IF(DAY(DATE(CalendarYear,CalendarMonth,1)-WEEKDAY(DATE(CalendarYear,CalendarMonth,1)))=1,DATE(CalendarYear,CalendarMonth,1)-WEEKDAY(DATE(CalendarYear,CalendarMonth,1))+5,DATE(CalendarYear,CalendarMonth,1)-WEEKDAY(DATE(CalendarYear,CalendarMonth,1))+12)","v":"2013-05-09"},{"$f":"IF(DAY(DATE(CalendarYear,CalendarMonth,1)-WEEKDAY(DATE(CalendarYear,CalendarMonth,1)))=1,DATE(CalendarYear,CalendarMonth,1)-WEEKDAY(DATE(CalendarYear,CalendarMonth,1))+6,DATE(CalendarYear,CalendarMonth,1)-WEEKDAY(DATE(CalendarYear,CalendarMonth,1))+13)","v":"2013-05-10"},{"$f":"IF(DAY(DATE(CalendarYear,CalendarMonth,1)-WEEKDAY(DATE(CalendarYear,CalendarMonth,1)))=1,DATE(CalendarYear,CalendarMonth,1)-WEEKDAY(DATE(CalendarYear,CalendarMonth,1))+7,DATE(CalendarYear,CalendarMonth,1)-WEEKDAY(DATE(CalendarYear,CalendarMonth,1))+14)","v":"2013-05-11"}]
[null,"Prep soil for planting","2013-05-20",{"v":0.5,"d":"50%"},{"$f":"IF(TaskList[[#This Row],[% complete]]=1,1,IF(ISBLANK(TaskList[[#This Row],[due date]]),2,IF(TODAY()>TaskList[[#This Row],[due date]],3,2)))","v":2},{"$nulls":3},{"$f":"IF(DAY(JanSun1)=1,JanSun1+1,JanSun1+8)","v":{"$error":"#NAME?"}},{"$f":"IF(DAY(JanSun1)=1,JanSun1+2,JanSun1+9)","v":{"$error":"#NAME?"}},{"$f":"IF(DAY(JanSun1)=1,JanSun1+3,JanSun1+10)","v":{"$error":"#NAME?"}},{"$f":"IF(DAY(JanSun1)=1,JanSun1+4,JanSun1+11)","v":{"$error":"#NAME?"}},{"$f":"IF(DAY(JanSun1)=1,JanSun1+5,JanSun1+12)","v":{"$error":"#NAME?"}},{"$f":"IF(DAY(JanSun1)=1,JanSun1+6,JanSun1+13)","v":{"$error":"#NAME?"}},{"$f":"IF(DAY(JanSun1)=1,JanSun1+7,JanSun1+14)","v":{"$error":"#NAME?"}}]
[null,"Transplant date","2013-05-31",{"v":0,"d":"0%"},{"$f":"IF(TaskList[[#This Row],[% complete]]=1,1,IF(ISBLANK(TaskList[[#This Row],[due date]]),2,IF(TODAY()>TaskList[[#This Row],[due date]],3,2)))","v":2},{"$nulls":3},{"$f":"IF(DAY(DATE(CalendarYear,CalendarMonth,1)-WEEKDAY(DATE(CalendarYear,CalendarMonth,1)))=1,DATE(CalendarYear,CalendarMonth,1)-WEEKDAY(DATE(CalendarYear,CalendarMonth,1))+8,DATE(CalendarYear,CalendarMonth,1)-WEEKDAY(DATE(CalendarYear,CalendarMonth,1))+15)","v":"2013-05-12"},{"$f":"IF(DAY(DATE(CalendarYear,CalendarMonth,1)-WEEKDAY(DATE(CalendarYear,CalendarMonth,1)))=1,DATE(CalendarYear,CalendarMonth,1)-WEEKDAY(DATE(CalendarYear,CalendarMonth,1))+9,DATE(CalendarYear,CalendarMonth,1)-WEEKDAY(DATE(CalendarYear,CalendarMonth,1))+16)","v":"2013-05-13"},{"$f":"IF(DAY(DATE(CalendarYear,CalendarMonth,1)-WEEKDAY(DATE(CalendarYear,CalendarMonth,1)))=1,DATE(CalendarYear,CalendarMonth,1)-WEEKDAY(DATE(CalendarYear,CalendarMonth,1))+10,DATE(CalendarYear,CalendarMonth,1)-WEEKDAY(DATE(CalendarYear,CalendarMonth,1))+17)","v":"2013-05-14"},{"$f":"IF(DAY(DATE(CalendarYear,CalendarMonth,1)-WEEKDAY(DATE(CalendarYear,CalendarMonth,1)))=1,DATE(CalendarYear,CalendarMonth,1)-WEEKDAY(DATE(CalendarYear,CalendarMonth,1))+11,DATE(CalendarYear,CalendarMonth,1)-WEEKDAY(DATE(CalendarYear,CalendarMonth,1))+18)","v":"2013-05-15"},{"$f":"IF(DAY(DATE(CalendarYear,CalendarMonth,1)-WEEKDAY(DATE(CalendarYear,CalendarMonth,1)))=1,DATE(CalendarYear,CalendarMonth,1)-WEEKDAY(DATE(CalendarYear,CalendarMonth,1))+12,DATE(CalendarYear,CalendarMonth,1)-WEEKDAY(DATE(CalendarYear,CalendarMonth,1))+19)","v":"2013-05-16"},{"$f":"IF(DAY(DATE(CalendarYear,CalendarMonth,1)-WEEKDAY(DATE(CalendarYear,CalendarMonth,1)))=1,DATE(CalendarYear,CalendarMonth,1)-WEEKDAY(DATE(CalendarYear,CalendarMonth,1))+13,DATE(CalendarYear,CalendarMonth,1)-WEEKDAY(DATE(CalendarYear,CalendarMonth,1))+20)","v":"2013-05-17"},{"$f":"IF(DAY(DATE(CalendarYear,CalendarMonth,1)-WEEKDAY(DATE(CalendarYear,CalendarMonth,1)))=1,DATE(CalendarYear,CalendarMonth,1)-WEEKDAY(DATE(CalendarYear,CalendarMonth,1))+14,DATE(CalendarYear,CalendarMonth,1)-WEEKDAY(DATE(CalendarYear,CalendarMonth,1))+21)","v":"2013-05-18"}]
[{"$nulls":8},{"$f":"IF(DAY(JanSun1)=1,JanSun1+8,JanSun1+15)","v":{"$error":"#NAME?"}},{"$f":"IF(DAY(JanSun1)=1,JanSun1+9,JanSun1+16)","v":{"$error":"#NAME?"}},{"$f":"IF(DAY(JanSun1)=1,JanSun1+10,JanSun1+17)","v":{"$error":"#NAME?"}},{"$f":"IF(DAY(JanSun1)=1,JanSun1+11,JanSun1+18)","v":{"$error":"#NAME?"}},{"$f":"IF(DAY(JanSun1)=1,JanSun1+12,JanSun1+19)","v":{"$error":"#NAME?"}},{"$f":"IF(DAY(JanSun1)=1,JanSun1+13,JanSun1+20)","v":{"$error":"#NAME?"}},{"$f":"IF(DAY(JanSun1)=1,JanSun1+14,JanSun1+21)","v":{"$error":"#NAME?"}}]
[{"$nulls":8},{"$f":"IF(DAY(DATE(CalendarYear,CalendarMonth,1)-WEEKDAY(DATE(CalendarYear,CalendarMonth,1)))=1,DATE(CalendarYear,CalendarMonth,1)-WEEKDAY(DATE(CalendarYear,CalendarMonth,1))+15,DATE(CalendarYear,CalendarMonth,1)-WEEKDAY(DATE(CalendarYear,CalendarMonth,1))+22)","v":"2013-05-19"},{"$f":"IF(DAY(DATE(CalendarYear,CalendarMonth,1)-WEEKDAY(DATE(CalendarYear,CalendarMonth,1)))=1,DATE(CalendarYear,CalendarMonth,1)-WEEKDAY(DATE(CalendarYear,CalendarMonth,1))+16,DATE(CalendarYear,CalendarMonth,1)-WEEKDAY(DATE(CalendarYear,CalendarMonth,1))+23)","v":"2013-05-20"},{"$f":"IF(DAY(DATE(CalendarYear,CalendarMonth,1)-WEEKDAY(DATE(CalendarYear,CalendarMonth,1)))=1,DATE(CalendarYear,CalendarMonth,1)-WEEKDAY(DATE(CalendarYear,CalendarMonth,1))+17,DATE(CalendarYear,CalendarMonth,1)-WEEKDAY(DATE(CalendarYear,CalendarMonth,1))+24)","v":"2013-05-21"},{"$f":"IF(DAY(DATE(CalendarYear,CalendarMonth,1)-WEEKDAY(DATE(CalendarYear,CalendarMonth,1)))=1,DATE(CalendarYear,CalendarMonth,1)-WEEKDAY(DATE(CalendarYear,CalendarMonth,1))+18,DATE(CalendarYear,CalendarMonth,1)-WEEKDAY(DATE(CalendarYear,CalendarMonth,1))+25)","v":"2013-05-22"},{"$f":"IF(DAY(DATE(CalendarYear,CalendarMonth,1)-WEEKDAY(DATE(CalendarYear,CalendarMonth,1)))=1,DATE(CalendarYear,CalendarMonth,1)-WEEKDAY(DATE(CalendarYear,CalendarMonth,1))+19,DATE(CalendarYear,CalendarMonth,1)-WEEKDAY(DATE(CalendarYear,CalendarMonth,1))+26)","v":"2013-05-23"},{"$f":"IF(DAY(DATE(CalendarYear,CalendarMonth,1)-WEEKDAY(DATE(CalendarYear,CalendarMonth,1)))=1,DATE(CalendarYear,CalendarMonth,1)-WEEKDAY(DATE(CalendarYear,CalendarMonth,1))+20,DATE(CalendarYear,CalendarMonth,1)-WEEKDAY(DATE(CalendarYear,CalendarMonth,1))+27)","v":"2013-05-24"},{"$f":"IF(DAY(DATE(CalendarYear,CalendarMonth,1)-WEEKDAY(DATE(CalendarYear,CalendarMonth,1)))=1,DATE(CalendarYear,CalendarMonth,1)-WEEKDAY(DATE(CalendarYear,CalendarMonth,1))+21,DATE(CalendarYear,CalendarMonth,1)-WEEKDAY(DATE(CalendarYear,CalendarMonth,1))+28)","v":"2013-05-25"}]
[{"$nulls":8},{"$f":"IF(DAY(JanSun1)=1,JanSun1+15,JanSun1+22)","v":{"$error":"#NAME?"}},{"$f":"IF(DAY(JanSun1)=1,JanSun1+16,JanSun1+23)","v":{"$error":"#NAME?"}},{"$f":"IF(DAY(JanSun1)=1,JanSun1+17,JanSun1+24)","v":{"$error":"#NAME?"}},{"$f":"IF(DAY(JanSun1)=1,JanSun1+18,JanSun1+25)","v":{"$error":"#NAME?"}},{"$f":"IF(DAY(JanSun1)=1,JanSun1+19,JanSun1+26)","v":{"$error":"#NAME?"}},{"$f":"IF(DAY(JanSun1)=1,JanSun1+20,JanSun1+27)","v":{"$error":"#NAME?"}},{"$f":"IF(DAY(JanSun1)=1,JanSun1+21,JanSun1+28)","v":{"$error":"#NAME?"}}]
[{"$nulls":8},{"$f":"IF(DAY(DATE(CalendarYear,CalendarMonth,1)-WEEKDAY(DATE(CalendarYear,CalendarMonth,1)))=1,DATE(CalendarYear,CalendarMonth,1)-WEEKDAY(DATE(CalendarYear,CalendarMonth,1))+22,DATE(CalendarYear,CalendarMonth,1)-WEEKDAY(DATE(CalendarYear,CalendarMonth,1))+29)","v":"2013-05-26"},{"$f":"IF(DAY(DATE(CalendarYear,CalendarMonth,1)-WEEKDAY(DATE(CalendarYear,CalendarMonth,1)))=1,DATE(CalendarYear,CalendarMonth,1)-WEEKDAY(DATE(CalendarYear,CalendarMonth,1))+23,DATE(CalendarYear,CalendarMonth,1)-WEEKDAY(DATE(CalendarYear,CalendarMonth,1))+30)","v":"2013-05-27"},{"$f":"IF(DAY(DATE(CalendarYear,CalendarMonth,1)-WEEKDAY(DATE(CalendarYear,CalendarMonth,1)))=1,DATE(CalendarYear,CalendarMonth,1)-WEEKDAY(DATE(CalendarYear,CalendarMonth,1))+24,DATE(CalendarYear,CalendarMonth,1)-WEEKDAY(DATE(CalendarYear,CalendarMonth,1))+31)","v":"2013-05-28"},{"$f":"IF(DAY(DATE(CalendarYear,CalendarMonth,1)-WEEKDAY(DATE(CalendarYear,CalendarMonth,1)))=1,DATE(CalendarYear,CalendarMonth,1)-WEEKDAY(DATE(CalendarYear,CalendarMonth,1))+25,DATE(CalendarYear,CalendarMonth,1)-WEEKDAY(DATE(CalendarYear,CalendarMonth,1))+32)","v":"2013-05-29"},{"$f":"IF(DAY(DATE(CalendarYear,CalendarMonth,1)-WEEKDAY(DATE(CalendarYear,CalendarMonth,1)))=1,DATE(CalendarYear,CalendarMonth,1)-WEEKDAY(DATE(CalendarYear,CalendarMonth,1))+26,DATE(CalendarYear,CalendarMonth,1)-WEEKDAY(DATE(CalendarYear,CalendarMonth,1))+33)","v":"2013-05-30"},{"$f":"IF(DAY(DATE(CalendarYear,CalendarMonth,1)-WEEKDAY(DATE(CalendarYear,CalendarMonth,1)))=1,DATE(CalendarYear,CalendarMonth,1)-WEEKDAY(DATE(CalendarYear,CalendarMonth,1))+27,DATE(CalendarYear,CalendarMonth,1)-WEEKDAY(DATE(CalendarYear,CalendarMonth,1))+34)","v":"2013-05-31"},{"$f":"IF(DAY(DATE(CalendarYear,CalendarMonth,1)-WEEKDAY(DATE(CalendarYear,CalendarMonth,1)))=1,DATE(CalendarYear,CalendarMonth,1)-WEEKDAY(DATE(CalendarYear,CalendarMonth,1))+28,DATE(CalendarYear,CalendarMonth,1)-WEEKDAY(DATE(CalendarYear,CalendarMonth,1))+35)","v":"2013-06-01"}]
[{"$nulls":8},{"$f":"IF(DAY(JanSun1)=1,JanSun1+22,JanSun1+29)","v":{"$error":"#NAME?"}},{"$f":"IF(DAY(JanSun1)=1,JanSun1+23,JanSun1+30)","v":{"$error":"#NAME?"}},{"$f":"IF(DAY(JanSun1)=1,JanSun1+24,JanSun1+31)","v":{"$error":"#NAME?"}},{"$f":"IF(DAY(JanSun1)=1,JanSun1+25,JanSun1+32)","v":{"$error":"#NAME?"}},{"$f":"IF(DAY(JanSun1)=1,JanSun1+26,JanSun1+33)","v":{"$error":"#NAME?"}},{"$f":"IF(DAY(JanSun1)=1,JanSun1+27,JanSun1+34)","v":{"$error":"#NAME?"}},{"$f":"IF(DAY(JanSun1)=1,JanSun1+28,JanSun1+35)","v":{"$error":"#NAME?"}}]
[{"$nulls":8},{"$f":"IF(DAY(DATE(CalendarYear,CalendarMonth,1)-WEEKDAY(DATE(CalendarYear,CalendarMonth,1)))=1,DATE(CalendarYear,CalendarMonth,1)-WEEKDAY(DATE(CalendarYear,CalendarMonth,1))+29,DATE(CalendarYear,CalendarMonth,1)-WEEKDAY(DATE(CalendarYear,CalendarMonth,1))+36)","v":"2013-06-02"},{"$f":"IF(DAY(DATE(CalendarYear,CalendarMonth,1)-WEEKDAY(DATE(CalendarYear,CalendarMonth,1)))=1,DATE(CalendarYear,CalendarMonth,1)-WEEKDAY(DATE(CalendarYear,CalendarMonth,1))+30,DATE(CalendarYear,CalendarMonth,1)-WEEKDAY(DATE(CalendarYear,CalendarMonth,1))+37)","v":"2013-06-03"},{"$f":"IF(DAY(DATE(CalendarYear,CalendarMonth,1)-WEEKDAY(DATE(CalendarYear,CalendarMonth,1)))=1,DATE(CalendarYear,CalendarMonth,1)-WEEKDAY(DATE(CalendarYear,CalendarMonth,1))+31,DATE(CalendarYear,CalendarMonth,1)-WEEKDAY(DATE(CalendarYear,CalendarMonth,1))+38)","v":"2013-06-04"},{"$f":"IF(DAY(DATE(CalendarYear,CalendarMonth,1)-WEEKDAY(DATE(CalendarYear,CalendarMonth,1)))=1,DATE(CalendarYear,CalendarMonth,1)-WEEKDAY(DATE(CalendarYear,CalendarMonth,1))+32,DATE(CalendarYear,CalendarMonth,1)-WEEKDAY(DATE(CalendarYear,CalendarMonth,1))+39)","v":"2013-06-05"},{"$f":"IF(DAY(DATE(CalendarYear,CalendarMonth,1)-WEEKDAY(DATE(CalendarYear,CalendarMonth,1)))=1,DATE(CalendarYear,CalendarMonth,1)-WEEKDAY(DATE(CalendarYear,CalendarMonth,1))+33,DATE(CalendarYear,CalendarMonth,1)-WEEKDAY(DATE(CalendarYear,CalendarMonth,1))+40)","v":"2013-06-06"},{"$f":"IF(DAY(DATE(CalendarYear,CalendarMonth,1)-WEEKDAY(DATE(CalendarYear,CalendarMonth,1)))=1,DATE(CalendarYear,CalendarMonth,1)-WEEKDAY(DATE(CalendarYear,CalendarMonth,1))+34,DATE(CalendarYear,CalendarMonth,1)-WEEKDAY(DATE(CalendarYear,CalendarMonth,1))+41)","v":"2013-06-07"},{"$f":"IF(DAY(DATE(CalendarYear,CalendarMonth,1)-WEEKDAY(DATE(CalendarYear,CalendarMonth,1)))=1,DATE(CalendarYear,CalendarMonth,1)-WEEKDAY(DATE(CalendarYear,CalendarMonth,1))+35,DATE(CalendarYear,CalendarMonth,1)-WEEKDAY(DATE(CalendarYear,CalendarMonth,1))+42)","v":"2013-06-08"}]
[{"$nulls":8},{"$f":"IF(DAY(JanSun1)=1,JanSun1+29,JanSun1+36)","v":{"$error":"#NAME?"}},{"$f":"IF(DAY(JanSun1)=1,JanSun1+30,JanSun1+37)","v":{"$error":"#NAME?"}},{"$f":"IF(DAY(JanSun1)=1,JanSun1+31,JanSun1+38)","v":{"$error":"#NAME?"}},{"$f":"IF(DAY(JanSun1)=1,JanSun1+32,JanSun1+39)","v":{"$error":"#NAME?"}},{"$f":"IF(DAY(JanSun1)=1,JanSun1+33,JanSun1+40)","v":{"$error":"#NAME?"}},{"$f":"IF(DAY(JanSun1)=1,JanSun1+34,JanSun1+41)","v":{"$error":"#NAME?"}},{"$f":"IF(DAY(JanSun1)=1,JanSun1+35,JanSun1+42)","v":{"$error":"#NAME?"}}]

{"sheet":"Garden Planning Grid","index":3,"n_rows":9,"n_cols":30,"rows_kept":9,"merged":[[9,0,9,28],[10,29,11,30],[12,29,13,30],[14,29,15,30],[16,29,17,30],[18,29,19,30],[20,29,21,30],[22,29,23,30],[24,29,25,30],[26,29,27,30],[28,29,29,30],[30,29,31,30]]}
[]
[{"$nulls":10},"Garden Planning Grid"]
[]
[]
[]
[]
[]
[]
["GARDEN PLOT DESCRIPTION",{"$nulls":27},"* 1 square = 1 square foot ","NOTES"]